[Event "56th Biel Festival MTO 2023"]
[White "Samant Aditya S"]
[Black "Kocharin,Timur"]
[Site "Biel"]
[Round "1.11"]
[Annotator "ChessBase"]
[Result "1-0"]
[Date "2023.07.18"]
[WhiteElo "2510"]
[BlackElo "2225"]
[PlyCount "99"]
[TimeControl "60"]

1. e4 {[%emt 0:0:0]} c5 {[%emt 0:0:0]} 2. Nf3 {[%emt 0:0:0]} d6 {[%emt 0:0:0]} 3. d4 {[%emt 0:0:0]} cxd4 {[%emt 0:0:0]} 4. Nxd4 {[%emt 0:0:0]} Nf6 {[%emt 0:0:0]} 5. Nc3 {[%emt 0:0:0]} a6 {[%emt 0:0:0]} 6. Be3 {[%emt 0:0:0]} e5 {[%emt 0:0:0]} 7. Nf3 {[%emt 0:0:0]} Be7 {[%emt 0:0:0]} 8. Bc4 {[%emt 0:0:0]} O-O {[%emt 0:0:0]} 9. Bb3 {[%emt 0:0:0]} Nc6 {[%emt 0:0:0]} 10. Qe2 {[%emt 0:0:0]} Na5 {[%emt 0:14:45]} 11. Rd1 {[%emt 0:0:0]} Nxb3 {[%emt 0:3:46]} 12. axb3 {[%emt 0:0:0]} Qe8 {[%emt 0:6:24]} 13. Bg5 {[%emt 0:0:0]} Qc6 {[%emt 0:3:10]} 14. O-O {[%emt 0:14:51]} Be6 {[%emt 0:3:12]} 15. Nd5 {[%emt 0:8:33]} Bxd5 {[%emt 0:5:27]} 16. Bxf6 {[%emt 0:0:7]} Bxf6 {[%emt 0:0:23]} 17. Rxd5 {[%emt 0:0:6]} Be7 {[%emt 0:2:32]} 18. Rfd1 {[%emt 0:2:47]} Rfc8 {[%emt 0:8:2]} 19. c3 {[%emt 0:1:24]} b5 {[%emt 0:3:35]} 20. Ne1 {[%emt 0:3:35]} Rcb8 {[%emt 0:1:26]} 21. Nc2 {[%emt 0:4:29]} Rb7 {[%emt 0:3:37]} 22. Nb4 {[%emt 0:5:52]} Qc8 {[%emt 0:0:52]} 23. R5d3 {[%emt 0:3:0]} a5 {[%emt 0:2:37]} 24. Nd5 {[%emt 0:1:7]} Bf8 {[%emt 0:4:20]} 25. b4 {[%emt 0:20:29]} a4 {[%emt 0:7:58]} 26. Ra1 {[%emt 0:4:51]} Ra6 {[%emt 0:4:28]} 27. b3 {[%emt 0:21:25]} Rba7 {[%emt 0:3:15]} 28. bxa4 {[%emt 0:0:7]} Rxa4 {[%emt 0:0:28]} 29. Rxa4 {[%emt 0:0:10]} Rxa4 {[%emt 0:0:12]} 30. Rd1 {[%emt 0:0:46]} Qc6 {[%emt 0:1:55]} 31. g3 {[%emt 0:3:29]} Ra8 {[%emt 0:2:48]} 32. h4 {[%emt 0:1:55]} Ra7 {[%emt 0:1:9]} 33. c4 {[%emt 0:1:57]} bxc4 {[%emt 0:5:43]} 34. Rc1 {[%emt 0:0:29]} f5 {[%emt 0:2:2]} 35. Qxc4 {[%emt 0:1:31]} Qxc4 {[%emt 0:0:30]} 36. Rxc4 {[%emt 0:0:2]} fxe4 {[%emt 0:0:21]} 37. b5 {[%emt 0:0:9]} Ra1+ {[%emt 0:0:34]} 38. Kg2 {[%emt 0:0:6]} Rb1 {[%emt 0:0:12]} 39. b6 {[%emt 0:1:14]} Kf7 {[%emt 0:1:7]} 40. Rb4 {[%emt 0:0:0]} Rxb4 {[%emt 0:0:0]} 41. Nxb4 {[%emt 0:0:0]} d5 {[%emt 0:0:0]} 42. Nxd5 {[%emt 0:0:0]} Ke6 {[%emt 0:0:0]} 43. b7 {[%emt 0:0:0]} Bd6 {[%emt 0:0:0]} 44. Nb4 {[%emt 0:0:0]} g5 {[%emt 0:0:0]} 45. hxg5 {[%emt 0:0:0]} Kf5 {[%emt 0:0:0]} 46. Na6 {[%emt 0:0:0]} Kxg5 {[%emt 0:0:0]} 47. b8=Q {[%emt 0:0:0]} Bxb8 {[%emt 0:0:0]} 48. Nxb8 {[%emt 0:0:0]} h5 {[%emt 0:0:0]} 49. Nd7 {[%emt 0:0:0]} h4 {[%emt 0:0:0]} 50. gxh4+ {[%emt 0:0:0]} 1-0

[Event "56th Biel Festival MTO 2023"]
[White "Costello,Alexander"]
[Black "Rodrigue-Lemieux,Shawn"]
[Site "Biel"]
[Round "1.12"]
[Annotator "ChessBase"]
[Result "0-1"]
[Date "2023.07.18"]
[WhiteElo "2224"]
[BlackElo "2495"]
[PlyCount "80"]
[TimeControl "60"]

1. Nf3 {[%emt 0:0:0]} d5 {[%emt 0:0:0]} 2. d4 {[%emt 0:0:0]} Nf6 {[%emt 0:0:0]} 3. c4 {[%emt 0:0:0]} e6 {[%emt 0:0:0]} 4. Nc3 {[%emt 0:0:0]} Bb4 {[%emt 0:0:0]} 5. Qa4+ {[%emt 0:0:0]} Nc6 {[%emt 0:0:0]} 6. Bg5 {[%emt 0:0:0]} h6 {[%emt 0:0:0]} 7. Bxf6 {[%emt 0:5:22]} Qxf6 {[%emt 0:0:0]} 8. e3 {[%emt 0:0:2]} O-O {[%emt 0:0:0]} 9. Qc2 {[%emt 0:0:2]} Rd8 {[%emt 0:0:0]} 10. a3 {[%emt 0:11:17]} Bf8 {[%emt 0:0:0]} 11. Rd1 {[%emt 0:0:26]} Ne7 {[%emt 0:11:32]} 12. c5 {[%emt 0:5:49]} b6 {[%emt 0:18:41]} 13. b4 {[%emt 0:0:13]} Bd7 {[%emt 0:3:14]} 14. Ba6 {[%emt 0:23:3]} Rab8 {[%emt 0:13:32]} 15. O-O {[%emt 0:1:18]} bxc5 {[%emt 0:1:2]} 16. bxc5 {[%emt 0:0:5]} e5 {[%emt 0:0:36]} 17. Be2 {[%emt 0:1:7]} exd4 {[%emt 0:11:47]} 18. Nxd4 {[%emt 0:0:29]} Be8 {[%emt 0:6:39]} 19. Ncb5 {[%emt 0:18:54]} Rb7 {[%emt 0:0:25]} 20. Rc1 {[%emt 0:4:12]} a6 {[%emt 0:8:15]} 21. Nc3 {[%emt 0:0:2]} Nc6 {[%emt 0:0:23]} 22. Rfd1 {[%emt 0:9:42]} Ne5 {[%emt 0:0:44]} 23. e4 {[%emt 0:5:51]} dxe4 {[%emt 0:3:21]} 24. Qxe4 {[%emt 0:0:26]} c6 {[%emt 0:1:1]} 25. Na4 {[%emt 0:1:47]} Rbd7 {[%emt 0:5:26]} 26. Nf5 {[%emt 0:3:27]} g6 {[%emt 0:2:16]} 27. Rxd7 {[%emt 0:4:9]} gxf5 {[%emt 0:9:17]} 28. Rxd8 {[%emt 0:0:22]} fxe4 {[%emt 0:0:5]} 29. Rxe8 {[%emt 0:0:3]} Nd3 {[%emt 0:0:35]} 30. Bxd3 {[%emt 0:3:45]} exd3 {[%emt 0:0:2]} 31. Nb6 {[%emt 0:1:33]} Kg7 {[%emt 0:4:59]} 32. Nd7 {[%emt 0:2:5]} d2 {[%emt 0:0:19]} 33. Rd1 {[%emt 0:0:37]} Qf5 {[%emt 0:0:23]} 34. Re2 {[%emt 0:0:45]} Qxd7 {[%emt 0:0:9]} 35. Rdxd2 {[%emt 0:0:22]} Qf5 {[%emt 0:0:19]} 36. Rc2 {[%emt 0:0:12]} Bxc5 {[%emt 0:0:24]} 37. g3 {[%emt 0:0:35]} Bxa3 {[%emt 0:0:59]} 38. Rxc6 {[%emt 0:0:44]} Bc5 {[%emt 0:0:6]} 39. Rc7 {[%emt 0:0:35]} Qb1+ {[%emt 0:0:16]} 40. Kg2 {[%emt 0:0:0]} Qb6 {[%emt 0:0:0]} 0-1

[Event "56th Biel Festival MTO 2023"]
[White "Peng,Xiongjian"]
[Black "Kamber,Bruno"]
[Site "Biel"]
[Round "1.13"]
[Annotator "ChessBase"]
[Result "1-0"]
[Date "2023.07.18"]
[WhiteElo "2489"]
[BlackElo "2214"]
[PlyCount "66"]
[TimeControl "60"]

1. e4 {[%emt 0:0:0]} c5 {[%emt 0:0:0]} 2. Nf3 {[%emt 0:0:0]} a6 {[%emt 0:0:0]} 3. c3 {[%emt 0:0:0]} d5 {[%emt 0:0:0]} 4. exd5 {[%emt 0:0:0]} Qxd5 {[%emt 0:0:0]} 5. Na3 {[%emt 0:0:0]} Nf6 {[%emt 0:0:0]} 6. Nc4 {[%emt 0:0:0]} Nbd7 {[%emt 0:0:0]} 7. Be2 {[%emt 0:0:0]} e6 {[%emt 0:0:0]} 8. O-O {[%emt 0:0:0]} Be7 {[%emt 0:0:52]} 9. a4 {[%emt 0:0:0]} b6 {[%emt 0:2:14]} 10. d4 {[%emt 0:0:0]} Bb7 {[%emt 0:3:23]} 11. Bf4 {[%emt 0:16:16]} cxd4 {[%emt 0:5:46]} 12. cxd4 {[%emt 0:2:45]} b5 {[%emt 0:3:41]} 13. Ne3 {[%emt 0:3:15]} Qe4 {[%emt 0:5:19]} 14. Bg3 {[%emt 0:2:5]} bxa4 {[%emt 0:7:30]} 15. Rxa4 {[%emt 0:15:26]} Qc6 {[%emt 0:15:48]} 16. Qa1 {[%emt 0:1:16]} O-O {[%emt 0:1:52]} 17. Rc1 {[%emt 0:0:4]} Qb6 {[%emt 0:1:16]} 18. Nc4 {[%emt 0:0:13]} Qa7 {[%emt 0:8:35]} 19. Na5 {[%emt 0:0:8]} Nd5 {[%emt 0:10:49]} 20. Nxb7 {[%emt 0:3:26]} Qxb7 {[%emt 0:0:9]} 21. Bxa6 {[%emt 0:0:12]} Qb6 {[%emt 0:3:24]} 22. Bb5 {[%emt 0:9:50]} Rad8 {[%emt 0:8:29]} 23. Bf1 {[%emt 0:12:40]} Rc8 {[%emt 0:2:39]} 24. h3 {[%emt 0:1:9]} Nb4 {[%emt 0:7:46]} 25. Rxc8 {[%emt 0:1:37]} Rxc8 {[%emt 0:0:5]} 26. Ra7 {[%emt 0:0:18]} Qc6 {[%emt 0:6:44]} 27. Qa5 {[%emt 0:0:23]} Bf8 {[%emt 0:1:17]} 28. Ng5 {[%emt 0:7:20]} f6 {[%emt 0:1:48]} 29. Bb5 {[%emt 0:1:39]} Qc1+ {[%emt 0:0:11]} 30. Kh2 {[%emt 0:0:5]} Nc6 {[%emt 0:0:12]} 31. Qa6 {[%emt 0:1:34]} Nb6 {[%emt 0:4:25]} 32. Qxb6 {[%emt 0:1:50]} fxg5 {[%emt 0:0:59]} 33. Rc7 {[%emt 0:0:37]} Rb8 {[%emt 0:1:47]} 1-0

[Event "56th Biel Festival MTO 2023"]
[White "Ribiere,Damien"]
[Black "Bharath Subramaniyam H"]
[Site "Biel"]
[Round "1.14"]
[Annotator "ChessBase"]
[Result "0-1"]
[Date "2023.07.18"]
[WhiteElo "2213"]
[BlackElo "2488"]
[PlyCount "60"]
[TimeControl "60"]

1. e4 {[%emt 0:0:0]} c5 {[%emt 0:0:0]} 2. a3 {[%emt 0:0:0]} Nc6 {[%emt 0:0:0]} 3. b4 {[%emt 0:0:0]} cxb4 {[%emt 0:1:7]} 4. axb4 {[%emt 0:0:0]} Nxb4 {[%emt 0:0:29]} 5. c3 {[%emt 0:0:0]} Nc6 {[%emt 0:0:41]} 6. d4 {[%emt 0:0:0]} d6 {[%emt 0:8:30]} 7. Bd3 {[%emt 0:0:0]} Nf6 {[%emt 0:9:25]} 8. Ne2 {[%emt 0:0:2]} g6 {[%emt 0:3:15]} 9. O-O {[%emt 0:0:18]} Bg7 {[%emt 0:0:16]} 10. f4 {[%emt 0:0:16]} O-O {[%emt 0:3:33]} 11. Nd2 {[%emt 0:0:21]} Bg4 {[%emt 0:4:26]} 12. Nf3 {[%emt 0:5:12]} a6 {[%emt 0:10:28]} 13. Qe1 {[%emt 0:7:58]} e5 {[%emt 0:15:59]} 14. d5 {[%emt 0:9:38]} Nb8 {[%emt 0:3:18]} 15. fxe5 {[%emt 0:7:40]} dxe5 {[%emt 0:0:2]} 16. Qh4 {[%emt 0:7:6]} Nbd7 {[%emt 0:1:7]} 17. Ng3 {[%emt 0:4:59]} Rc8 {[%emt 0:5:7]} 18. h3 {[%emt 0:16:2]} Bxf3 {[%emt 0:1:19]} 19. Rxf3 {[%emt 0:0:7]} Rxc3 {[%emt 0:5:57]} 20. Bd2 {[%emt 0:5:28]} Rb3 {[%emt 0:10:14]} 21. Raf1 {[%emt 0:0:22]} Nc5 {[%emt 0:3:19]} 22. Bg5 {[%emt 0:9:31]} Rxd3 {[%emt 0:0:44]} 23. Rxd3 {[%emt 0:9:55]} Nxd3 {[%emt 0:0:9]} 24. Rxf6 {[%emt 0:1:43]} Qc8 {[%emt 0:3:36]} 25. Kh2 {[%emt 0:5:13]} Nf4 {[%emt 0:1:16]} 26. Bh6 {[%emt 0:4:26]} Qc2 {[%emt 0:3:43]} 27. Rxf4 {[%emt 0:1:22]} exf4 {[%emt 0:0:2]} 28. Nf5 {[%emt 0:0:32]} gxf5 {[%emt 0:1:30]} 29. Bxg7 {[%emt 0:2:46]} f3 {[%emt 0:0:26]} 30. Qg3 {[%emt 0:0:52]} Qxg2+ {[%emt 0:0:9]} 0-1

[Event "56th Biel Festival MTO 2023"]
[White "Eidelman,Gabriel"]
[Black "Samadov,Read"]
[Site "Biel"]
[Round "1.16"]
[Annotator "ChessBase"]
[Result "1/2-1/2"]
[Date "2023.07.18"]
[WhiteElo "2204"]
[BlackElo "2482"]
[PlyCount "107"]
[TimeControl "60"]

1. d4 {[%emt 0:0:0]} Nf6 {[%emt 0:0:0]} 2. c4 {[%emt 0:0:0]} g6 {[%emt 0:0:0]} 3. f3 {[%emt 0:0:0]} Bg7 {[%emt 0:0:0]} 4. e4 {[%emt 0:0:0]} d6 {[%emt 0:0:0]} 5. Nc3 {[%emt 0:0:0]} a6 {[%emt 0:0:0]} 6. Be3 {[%emt 0:0:0]} O-O {[%emt 0:0:0]} 7. Nge2 {[%emt 0:0:0]} Nbd7 {[%emt 0:0:0]} 8. Qd2 {[%emt 0:0:50]} b5 {[%emt 0:2:18]} 9. h4 {[%emt 0:2:12]} Nb6 {[%emt 0:6:57]} 10. Ng3 {[%emt 0:12:11]} c6 {[%emt 0:2:28]} 11. h5 {[%emt 0:6:39]} Re8 {[%emt 0:12:41]} 12. hxg6 {[%emt 0:23:20]} hxg6 {[%emt 0:2:34]} 13. O-O-O {[%emt 0:6:54]} b4 {[%emt 0:21:40]} 14. Nb1 {[%emt 0:0:29]} a5 {[%emt 0:1:46]} 15. Be2 {[%emt 0:7:15]} Qc7 {[%emt 0:13:17]} 16. Bh6 {[%emt 0:9:17]} Bh8 {[%emt 0:2:32]} 17. Nf5 {[%emt 0:17:17]} Bxf5 {[%emt 0:4:22]} 18. exf5 {[%emt 0:0:3]} e5 {[%emt 0:3:8]} 19. Bd3 {[%emt 0:3:46]} e4 {[%emt 0:2:31]} 20. fxe4 {[%emt 0:1:0]} Nxe4 {[%emt 0:1:4]} 21. Qf4 {[%emt 0:1:55]} Qe7 {[%emt 0:1:23]} 22. Rhe1 {[%emt 0:3:23]} d5 {[%emt 0:1:46]} 23. fxg6 {[%emt 0:1:54]} fxg6 {[%emt 0:1:2]} 24. Nd2 {[%emt 0:1:1]} g5 {[%emt 0:3:21]} 25. Bxg5 {[%emt 0:2:9]} Qxg5 {[%emt 0:0:42]} 26. Rxe4 {[%emt 0:0:6]} Qxf4 {[%emt 0:3:13]} 27. Rxf4 {[%emt 0:0:3]} Re3 {[%emt 0:2:47]} 28. Rg4+ {[%emt 0:1:5]} Bg7 {[%emt 0:2:13]} 29. Kc2 {[%emt 0:0:15]} a4 {[%emt 0:1:17]} 30. c5 {[%emt 0:1:36]} Nd7 {[%emt 0:0:42]} 31. Nf3 {[%emt 0:0:34]} Nf6 {[%emt 0:4:35]} 32. Rh4 {[%emt 0:0:27]} Ne4 {[%emt 0:0:53]} 33. Bxe4 {[%emt 0:0:31]} dxe4 {[%emt 0:0:12]} 34. Ne5 {[%emt 0:0:41]} Bxe5 {[%emt 0:0:54]} 35. dxe5 {[%emt 0:0:2]} Re8 {[%emt 0:0:11]} 36. Rh6 {[%emt 0:0:37]} Rg3 {[%emt 0:2:42]} 37. Rd2 {[%emt 0:0:44]} Rxe5 {[%emt 0:0:48]} 38. Rxc6 {[%emt 0:0:7]} Reg5 {[%emt 0:1:47]} 39. Rc8+ {[%emt 0:0:54]} Kf7 {[%emt 0:0:10]} 40. Rc7+ {[%emt 0:0:0]} Ke6 {[%emt 0:0:0]} 41. Rc6+ {[%emt 0:0:0]} Ke5 {[%emt 0:0:0]} 42. Rb6 {[%emt 0:10:11]} e3 {[%emt 0:0:0]} 43. Re2 {[%emt 0:0:19]} Rxg2 {[%emt 0:0:0]} 44. Kd3 {[%emt 0:0:31]} Rxe2 {[%emt 0:0:0]} 45. Kxe2 {[%emt 0:0:8]} Rg2+ {[%emt 0:0:0]} 46. Kxe3 {[%emt 0:0:8]} Rxb2 {[%emt 0:0:0]} 47. Kd3 {[%emt 0:0:20]} Rxa2 {[%emt 0:0:0]} 48. Rxb4 {[%emt 0:0:32]} Kd5 {[%emt 0:0:0]} 49. Kc3 {[%emt 0:1:45]} Kxc5 {[%emt 0:0:0]} 50. Rh4 {[%emt 0:0:13]} a3 {[%emt 0:0:0]} 51. Kb3 {[%emt 0:0:30]} Ra1 {[%emt 0:0:0]} 52. Ra4 {[%emt 0:0:17]} Kb5 {[%emt 0:0:0]} 53. Rxa3 {[%emt 0:0:6]} Rxa3+ {[%emt 0:0:0]} 54. Kxa3 {[%emt 0:0:9]} 1/2-1/2

[Event "56th Biel Festival MTO 2023"]
[White "Wang,Chen"]
[Black "Ouellet,Maili-Jade"]
[Site "Biel"]
[Round "1.17"]
[Annotator "ChessBase"]
[Result "1-0"]
[Date "2023.07.18"]
[WhiteElo "2477"]
[BlackElo "2201"]
[PlyCount "126"]
[TimeControl "60"]

1. e4 {[%emt 0:0:0]} c5 {[%emt 0:0:0]} 2. Nf3 {[%emt 0:0:0]} d6 {[%emt 0:0:0]} 3. Bb5+ {[%emt 0:0:0]} Nd7 {[%emt 0:0:0]} 4. d4 {[%emt 0:0:0]} cxd4 {[%emt 0:0:0]} 5. Qxd4 {[%emt 0:0:0]} a6 {[%emt 0:0:0]} 6. Be2 {[%emt 0:0:0]} Ngf6 {[%emt 0:0:0]} 7. O-O {[%emt 0:0:0]} g6 {[%emt 0:0:0]} 8. c4 {[%emt 0:4:9]} Bg7 {[%emt 0:0:0]} 9. Nc3 {[%emt 0:0:9]} O-O {[%emt 0:0:0]} 10. h3 {[%emt 0:1:5]} Rb8 {[%emt 0:0:6]} 11. Qe3 {[%emt 0:2:51]} Qa5 {[%emt 0:10:30]} 12. Bd2 {[%emt 0:22:39]} Qc5 {[%emt 0:6:49]} 13. Qd3 {[%emt 0:6:45]} b5 {[%emt 0:23:11]} 14. cxb5 {[%emt 0:1:43]} axb5 {[%emt 0:0:26]} 15. Be3 {[%emt 0:3:19]} Qc6 {[%emt 0:10:57]} 16. Nd4 {[%emt 0:5:9]} Qa8 {[%emt 0:1:49]} 17. Ndxb5 {[%emt 0:0:34]} Ba6 {[%emt 0:6:27]} 18. a4 {[%emt 0:1:18]} Rfc8 {[%emt 0:1:23]} 19. f3 {[%emt 0:5:40]} Ne5 {[%emt 0:4:2]} 20. Qd2 {[%emt 0:7:19]} Nc4 {[%emt 0:2:7]} 21. Bxc4 {[%emt 0:0:6]} Rxc4 {[%emt 0:0:4]} 22. Rfc1 {[%emt 0:1:4]} Qb7 {[%emt 0:2:50]} 23. b3 {[%emt 0:1:8]} Rcc8 {[%emt 0:0:58]} 24. Rab1 {[%emt 0:2:48]} Ra8 {[%emt 0:8:54]} 25. Bd4 {[%emt 0:0:36]} h5 {[%emt 0:4:52]} 26. Na3 {[%emt 0:2:8]} Nd7 {[%emt 0:2:33]} 27. Bxg7 {[%emt 0:3:30]} Kxg7 {[%emt 0:0:3]} 28. b4 {[%emt 0:0:27]} Ne5 {[%emt 0:2:41]} 29. Qd4 {[%emt 0:5:12]} Qa7 {[%emt 0:0:36]} 30. Qxa7 {[%emt 0:0:5]} Rxa7 {[%emt 0:0:3]} 31. Nd5 {[%emt 0:0:34]} Rb8 {[%emt 0:2:21]} 32. a5 {[%emt 0:8:26]} Bd3 {[%emt 0:2:42]} 33. Ra1 {[%emt 0:0:25]} g5 {[%emt 0:0:39]} 34. Rc3 {[%emt 0:2:16]} f5 {[%emt 0:5:19]} 35. exf5 {[%emt 0:0:32]} Bxf5 {[%emt 0:0:6]} 36. Re1 {[%emt 0:2:20]} e6 {[%emt 0:2:22]} 37. Nb6 {[%emt 0:2:44]} Nd3 {[%emt 0:0:43]} 38. Nb5 {[%emt 0:1:47]} Re7 {[%emt 0:1:37]} 39. Re3 {[%emt 0:3:8]} Nxb4 {[%emt 0:0:13]} 40. Nxd6 {[%emt 0:0:0]} Kf6 {[%emt 0:0:0]} 41. Rc5 {[%emt 0:0:0]} Bg6 {[%emt 0:0:0]} 42. Ndc8 {[%emt 0:0:0]} Reb7 {[%emt 0:0:0]} 43. Rce5 {[%emt 0:0:0]} Bf7 {[%emt 0:0:0]} 44. Nd6 {[%emt 0:0:0]} Nc6 {[%emt 0:5:15]} 45. Nxf7 {[%emt 0:9:55]} Nxe5 {[%emt 0:3:46]} 46. Nxe5 {[%emt 0:0:8]} Rd8 {[%emt 0:0:35]} 47. Ned7+ {[%emt 0:2:23]} Kf7 {[%emt 0:1:35]} 48. a6 {[%emt 0:0:19]} Ra7 {[%emt 0:1:40]} 49. Ra3 {[%emt 0:0:6]} Ke7 {[%emt 0:1:40]} 50. Ne5 {[%emt 0:0:57]} Rd1+ {[%emt 0:0:7]} 51. Kf2 {[%emt 0:0:5]} Rc1 {[%emt 0:0:26]} 52. Ra2 {[%emt 0:0:45]} Rc5 {[%emt 0:5:35]} 53. Nbc4 {[%emt 0:0:30]} Kf6 {[%emt 0:1:7]} 54. Ke3 {[%emt 0:0:12]} Rc8 {[%emt 0:1:22]} 55. Nb6 {[%emt 0:1:11]} Rc1 {[%emt 0:1:45]} 56. Nbc4 {[%emt 0:0:35]} Rb1 {[%emt 0:2:47]} 57. Ra5 {[%emt 0:0:26]} Rc1 {[%emt 0:1:14]} 58. g4 {[%emt 0:2:4]} h4 {[%emt 0:0:54]} 59. Nd2 {[%emt 0:3:52]} Kg7 {[%emt 0:1:52]} 60. Ne4 {[%emt 0:0:0]} Rb1 {[%emt 0:0:0]} 61. Nc6 {[%emt 0:0:0]} Ra8 {[%emt 0:0:0]} 62. Rxg5+ {[%emt 0:0:0]} Kf7 {[%emt 0:0:0]} 63. a7 {[%emt 0:0:0]} Rb6 {[%emt 0:0:0]} 1-0

[Event "56th Biel Festival MTO 2023"]
[White "Perkampus,Laurin"]
[Black "Saraci,Nderim"]
[Site "Biel"]
[Round "1.18"]
[Annotator "ChessBase"]
[Result "1/2-1/2"]
[Date "2023.07.18"]
[WhiteElo "2197"]
[BlackElo "2472"]
[PlyCount "154"]
[TimeControl "60"]

1. d4 {[%emt 0:0:0]} Nf6 {[%emt 0:0:0]} 2. c4 {[%emt 0:0:0]} e6 {[%emt 0:0:0]} 3. Nc3 {[%emt 0:0:0]} c5 {[%emt 0:0:0]} 4. d5 {[%emt 0:0:0]} exd5 {[%emt 0:0:0]} 5. cxd5 {[%emt 0:0:0]} d6 {[%emt 0:0:0]} 6. e4 {[%emt 0:0:0]} g6 {[%emt 0:0:0]} 7. Nf3 {[%emt 0:0:0]} Bg7 {[%emt 0:0:0]} 8. Be2 {[%emt 0:0:0]} O-O {[%emt 0:0:0]} 9. O-O {[%emt 0:0:0]} Bg4 {[%emt 0:0:0]} 10. Bf4 {[%emt 0:15:52]} Re8 {[%emt 0:0:10]} 11. h3 {[%emt 0:11:29]} Bxf3 {[%emt 0:20:23]} 12. Bxf3 {[%emt 0:0:18]} a6 {[%emt 0:0:54]} 13. a4 {[%emt 0:4:42]} Bf8 {[%emt 0:24:32]} 14. Qd2 {[%emt 0:28:2]} Nbd7 {[%emt 0:0:39]} 15. Rfe1 {[%emt 0:4:2]} Rc8 {[%emt 0:6:17]} 16. g4 {[%emt 0:8:52]} Ne5 {[%emt 0:16:45]} 17. Be2 {[%emt 0:1:54]} c4 {[%emt 0:4:8]} 18. Be3 {[%emt 0:6:2]} Ned7 {[%emt 0:7:27]} 19. f3 {[%emt 0:9:29]} Nc5 {[%emt 0:1:23]} 20. Rad1 {[%emt 0:1:30]} Nfd7 {[%emt 0:2:37]} 21. Kg2 {[%emt 0:5:25]} Bg7 {[%emt 0:7:13]} 22. Bxc4 {[%emt 0:2:3]} Nb6 {[%emt 0:3:49]} 23. Be2 {[%emt 0:1:20]} Nbxa4 {[%emt 0:1:23]} 24. Nxa4 {[%emt 0:0:0]} Nxa4 {[%emt 0:0:11]} 25. Bd4 {[%emt 0:0:9]} Nc5 {[%emt 0:1:51]} 26. Bxg7 {[%emt 0:0:27]} Kxg7 {[%emt 0:0:1]} 27. b4 {[%emt 0:0:47]} Na4 {[%emt 0:2:4]} 28. Rc1 {[%emt 0:0:48]} Qf6 {[%emt 0:1:11]} 29. Qa2 {[%emt 0:1:17]} b5 {[%emt 0:1:19]} 30. Qd2 {[%emt 0:0:27]} Rc3 {[%emt 0:0:42]} 31. Rxc3 {[%emt 0:0:33]} Qxc3 {[%emt 0:0:25]} 32. Qxc3+ {[%emt 0:0:28]} Nxc3 {[%emt 0:0:2]} 33. Bd3 {[%emt 0:0:29]} Na2 {[%emt 0:1:1]} 34. Rb1 {[%emt 0:0:21]} Rc8 {[%emt 0:0:24]} 35. Rb2 {[%emt 0:0:11]} Nc3 {[%emt 0:0:37]} 36. Rc2 {[%emt 0:0:47]} Kf6 {[%emt 0:0:24]} 37. f4 {[%emt 0:0:22]} g5 {[%emt 0:0:35]} 38. Kf3 {[%emt 0:0:42]} gxf4 {[%emt 0:0:10]} 39. Kxf4 {[%emt 0:0:11]} Ke7 {[%emt 0:0:33]} 40. Kf5 {[%emt 0:0:0]} f6 {[%emt 0:0:0]} 41. h4 {[%emt 0:0:0]} h6 {[%emt 0:0:0]} 42. Kg6 {[%emt 0:1:36]} a5 {[%emt 0:0:0]} 43. bxa5 {[%emt 0:5:20]} b4 {[%emt 0:0:0]} 44. a6 {[%emt 0:5:11]} Rg8+ {[%emt 0:0:0]} 45. Kh7 {[%emt 0:4:5]} Kf7 {[%emt 0:0:0]} 46. a7 {[%emt 0:5:39]} Ra8 {[%emt 0:4:30]} 47. Rb2 {[%emt 0:0:26]} Rxa7 {[%emt 0:1:56]} 48. Rxb4 {[%emt 0:0:6]} Na4 {[%emt 0:1:22]} 49. Rb8 {[%emt 0:10:19]} Nc5 {[%emt 0:1:20]} 50. Rg8 {[%emt 0:1:26]} Ra4 {[%emt 0:1:7]} 51. Bb5 {[%emt 0:1:16]} Rxe4 {[%emt 0:0:12]} 52. Rg7+ {[%emt 0:0:30]} Kf8 {[%emt 0:0:9]} 53. Rg8+ {[%emt 0:0:38]} Kf7 {[%emt 0:0:2]} 54. Rg7+ {[%emt 0:0:5]} Kf8 {[%emt 0:0:4]} 55. Kxh6 {[%emt 0:0:51]} Rb4 {[%emt 0:3:33]} 56. Bc6 {[%emt 0:0:20]} f5 {[%emt 0:3:28]} 57. g5 {[%emt 0:1:33]} Nd3 {[%emt 0:1:36]} 58. h5 {[%emt 0:0:26]} Rh4 {[%emt 0:1:24]} 59. Ra7 {[%emt 0:0:35]} Nf4 {[%emt 0:1:6]} 60. Ra8+ {[%emt 0:0:0]} Ke7 {[%emt 0:0:0]} 61. g6 {[%emt 0:0:0]} Kf6 {[%emt 0:0:0]} 62. Rf8+ {[%emt 0:0:0]} Ke5 {[%emt 0:0:0]} 63. Kg7 {[%emt 0:0:0]} Nxh5+ {[%emt 0:0:0]} 64. Kf7 {[%emt 0:0:0]} Rg4 {[%emt 0:0:0]} 65. Re8+ {[%emt 0:0:0]} Kd4 {[%emt 0:0:0]} 66. Rh8 {[%emt 0:0:2]} Rg5 {[%emt 0:0:0]} 67. Rxh5 {[%emt 0:2:37]} Rxh5 {[%emt 0:0:0]} 68. Kf6 {[%emt 0:0:52]} Rh1 {[%emt 0:0:0]} 69. Kxf5 {[%emt 0:0:15]} Rf1+ {[%emt 0:0:0]} 70. Ke6 {[%emt 0:0:36]} Rg1 {[%emt 0:0:0]} 71. Kf7 {[%emt 0:1:28]} Rf1+ {[%emt 0:0:0]} 72. Ke6 {[%emt 0:0:40]} Rg1 {[%emt 0:0:0]} 73. Kf7 {[%emt 0:0:33]} Ke5 {[%emt 0:0:0]} 74. g7 {[%emt 0:0:16]} Rf1+ {[%emt 0:0:0]} 75. Ke7 {[%emt 0:0:32]} Rg1 {[%emt 0:0:0]} 76. Kf7 {[%emt 0:0:23]} Rf1+ {[%emt 0:0:0]} 77. Ke7 {[%emt 0:0:37]} Rg1 {[%emt 0:0:0]} 1/2-1/2

[Event "56th Biel Festival MTO 2023"]
[White "Rathanvel,V S"]
[Black "Ozcan,Kaan"]
[Site "Biel"]
[Round "1.19"]
[Annotator "ChessBase"]
[Result "1-0"]
[Date "2023.07.18"]
[WhiteElo "2463"]
[BlackElo "2196"]
[PlyCount "83"]
[TimeControl "60"]

1. e4 {[%emt 0:0:0]} c6 {[%emt 0:0:0]} 2. d4 {[%emt 0:0:0]} d5 {[%emt 0:0:0]} 3. e5 {[%emt 0:0:0]} Bf5 {[%emt 0:0:0]} 4. Nf3 {[%emt 0:0:0]} e6 {[%emt 0:0:0]} 5. Be2 {[%emt 0:0:0]} c5 {[%emt 0:0:0]} 6. c3 {[%emt 0:0:0]} Nc6 {[%emt 0:0:0]} 7. O-O {[%emt 0:0:31]} Bg6 {[%emt 0:0:0]} 8. Nbd2 {[%emt 0:18:2]} c4 {[%emt 0:8:27]} 9. b3 {[%emt 0:13:48]} b5 {[%emt 0:3:40]} 10. a4 {[%emt 0:0:9]} a6 {[%emt 0:1:20]} 11. Nh4 {[%emt 0:8:36]} Be7 {[%emt 0:16:52]} 12. Nxg6 {[%emt 0:2:23]} hxg6 {[%emt 0:0:10]} 13. Bf3 {[%emt 0:3:0]} Na5 {[%emt 0:16:43]} 14. axb5 {[%emt 0:7:58]} axb5 {[%emt 0:1:3]} 15. bxc4 {[%emt 0:0:9]} Nxc4 {[%emt 0:2:35]} 16. Rb1 {[%emt 0:24:34]} Qd7 {[%emt 0:10:47]} 17. Qb3 {[%emt 0:0:43]} Ra5 {[%emt 0:2:42]} 18. Nxc4 {[%emt 0:1:27]} bxc4 {[%emt 0:3:16]} 19. Qb8+ {[%emt 0:12:15]} Qd8 {[%emt 0:0:34]} 20. Qb7 {[%emt 0:0:21]} Nh6 {[%emt 0:11:2]} 21. Qc6+ {[%emt 0:0:56]} Kf8 {[%emt 0:4:30]} 22. Rb7 {[%emt 0:0:14]} Nf5 {[%emt 0:10:44]} 23. Bd2 {[%emt 0:1:1]} Kg8 {[%emt 0:4:2]} 24. Bg4 {[%emt 0:1:26]} Bf8 {[%emt 0:2:27]} 25. Rfb1 {[%emt 0:0:27]} Ra8 {[%emt 0:1:24]} 26. h3 {[%emt 0:0:52]} Qe8 {[%emt 0:0:31]} 27. Qc7 {[%emt 0:0:41]} Rc8 {[%emt 0:0:12]} 28. Qa5 {[%emt 0:0:33]} Ra8 {[%emt 0:0:20]} 29. Ra7 {[%emt 0:0:21]} Rxa7 {[%emt 0:0:58]} 30. Qxa7 {[%emt 0:0:1]} Nh6 {[%emt 0:0:33]} 31. Rb8 {[%emt 0:0:35]} Qc6 {[%emt 0:0:12]} 32. Qe7 {[%emt 0:0:46]} Kh7 {[%emt 0:0:26]} 33. Rxf8 {[%emt 0:0:9]} Rxf8 {[%emt 0:0:10]} 34. Qxf8 {[%emt 0:0:15]} Nxg4 {[%emt 0:0:36]} 35. hxg4 {[%emt 0:0:22]} Qa4 {[%emt 0:0:15]} 36. Be3 {[%emt 0:0:35]} Qa1+ {[%emt 0:1:6]} 37. Kh2 {[%emt 0:0:8]} Qxc3 {[%emt 0:0:3]} 38. Qxf7 {[%emt 0:0:10]} Qd3 {[%emt 0:0:26]} 39. Qxe6 {[%emt 0:0:13]} Qe4 {[%emt 0:0:16]} 40. Qc8 {[%emt 0:0:0]} c3 {[%emt 0:0:0]} 41. Qxc3 {[%emt 0:0:0]} Qxg4 {[%emt 0:0:0]} 42. f3 {[%emt 0:0:0]} 1-0